Cogmind - Beta 12 X1 @@@ ROGUE MODE // 2022.07.27 @ 21:13:40 Player: Plexion Result: Destroyed by G-47 Trooper with Particle Gun Performance ------------- Evolutions (2) 1000 Regions Visited (9) 1800 Robots Destroyed (111) 555 Value Destroyed (3840) 3840 Prototype IDs (27) 540 Alien Tech Used (0) 0 Bonus (1851) 1851 TOTAL SCORE: 9586 Bonus ------- High Alert Combat Kills 1066 Follower Combat Kills 116 Entered Garrisons 400 Aligned with FarCom 300 Friendly Fire -31 Cogmind --------- Core Integrity 0/550 Matter 107/300 Energy 81/100 System Corruption 6% Temperature Cool (9) Movement Treading (320) Ox2 Location -8/Storage Parts ------- > --- POWER (1) -------- (None) > --- PROPULSION (4) --- Light Treads > --- UTILITY (4) ------ Improved Heat Sink High-capacity Storage Unit Advanced Targeting Computer Hardened Light Armor Plating > --- WEAPON (2) ------- Rocket Launcher > --- INVENTORY (20) --- Advanced Phase Shifter Hardened Light Armor Plating Hardened Light Armor Plating Hardened Light Armor Plating Hardened Light Armor Plating Hardened Light Armor Plating Medium Insulated Plating Medium Insulated Plating Heavy Assault Rifle Heavy Linear Accelerator Heavy Linear Accelerator Heavy Linear Accelerator Heavy Linear Accelerator Hammer Peak State ------------ > --- POWER ------------ Cooled Ion Engine > --- PROPULSION ------- Improved Heavy Treads Improved Heavy Treads > --- UTILITY ---------- High-capacity Storage Unit Hardened Light Armor Plating Hardened Light Armor Plating Hardened Medium Armor Plating > --- WEAPON ----------- Heavy Linear Accelerator > --- INVENTORY -------- Light Nuclear Core Light Treads Armored Treads Improved Heat Sink Hardened Light Armor Plating Hardened Light Armor Plating Hardened Light Armor Plating Hardened Light Armor Plating Hardened Light Armor Plating Hardened Light Armor Plating Heavy Assault Rifle Heavy Linear Accelerator Heavy Linear Accelerator Heavy Linear Accelerator Missile Launcher Plasma Cutter Hammer [Rating: 62] Favorites ----------- Power Light Nuclear Core Engine Cooled Ion Engine Power Core Light Nuclear Core Propulsion Improved Heavy Treads Treads Improved Heavy Treads Wheel Compact Wheel Hover Unit Aerolev Unit Utility High-capacity Storage Unit Device Heat Sink Storage High-capacity Storage Unit Processor Targeting Computer Hackware Hacking Suite Protection Hardened Light Armor Plating Weapon Improved Light Cannon Energy Gun EM Pulse Gun Ballistic Gun Light Assault Rifle Ballistic Cannon Improved Light Cannon Launcher Grenade Launcher Special Weapon Plasma Cutter Impact Weapon Hammer Build | -11 -10 -10 -10 -9 -8 -8 -8 -8 -8 ------- Run | Scr Mat Min Exi Min Mat Gar Mat Gar Sto Slots Evolved 4 | . . . . . 4 . . . . Power . | . . . . . . . . . . Propulsion 2 | . . . . . 2 . . . . Utility 2 | . . . . . 2 . . . . Weapon . | . . . . . . . . . . Parts Attached 102 | 6 8 1 3 3 12 17 20 16 16 Power 7 | 1 . 1 . . 1 1 2 . 1 Engine 4 | 1 . 1 . . 1 . 1 . . Core 3 | . . . . . . 1 1 . 1 Reactor . | . . . . . . . . . . Propulsion 18 | 2 . . 1 . 5 5 . 1 4 Treads 12 | 2 . . . . 1 4 . 1 4 Leg . | . . . . . . . . . . Wheel 4 | . . . . . 3 1 . . . Hover 2 | . . . 1 . 1 . . . . Flight . | . . . . . . . . . . Utility 29 | 1 2 . 1 1 4 3 5 4 8 Device 2 | . . . . . . . . . 2 Storage 5 | 1 1 . 1 . 2 . . . . Processor 4 | . 1 . . 1 . . 1 . 1 Hackware 1 | . . . . . . . . 1 . Protection 17 | . . . . . 2 3 4 3 5 Artifact . | . . . . . . . . . . Weapon 48 | 2 6 . 1 2 2 8 13 11 3 Energy Gun 3 | . . . . 1 . . 2 . . Energy Cannon . | . . . . . . . . . . Ballistic Gun 11 | 2 3 . . 1 . 1 1 3 . Ballistic Cannon 17 | . . . . . 2 3 7 4 1 Launcher 15 | . 3 . 1 . . 3 3 3 2 Special Weapon 1 | . . . . . . 1 . . . Impact Weapon 1 | . . . . . . . . 1 . Slashing Weapon . | . . . . . . . . . . Piercing Weapon . | . . . . . . . . . . Special Melee Weapon . | . . . . . . . . . . Unidentified Prototypes 4 | . . . . . 1 . 3 . . Parts Lost 22 | . . . 5 . . 5 2 5 5 Power 3 | . . . 1 . . 1 . . 1 Propulsion 7 | . . . 2 . . 1 . 1 3 Utility 7 | . . . . . . 3 1 2 1 Weapon 5 | . . . 2 . . . 1 2 . Highest Loss Streak 5 | . . . 5 . . 4 1 2 3 To Critical Strikes 2 | . . . . . . . 1 1 . Average Slot Usage (%) 84 | . 88 100 97 57 82 88 80 76 76 Engine 6 | . 14 14 13 . 3 3 . 9 2 Core 3 | . . . . . . 5 8 . 5 Treads 19 | . 28 28 26 . 7 13 18 17 24 Wheel 3 | . . . . . 16 13 . . . Storage 9 | . 14 14 13 . 6 9 9 9 9 Processor 9 | . 3 14 14 14 10 9 9 6 8 Protection 13 | . . . . . 15 16 17 20 11 Ballistic Gun 8 | . 27 28 25 14 . 4 . 3 . Ballistic Cannon 9 | . . . . . 17 8 16 10 8 Special Weapon 1 | . . . . . . 4 . . . Naked Turns . | . . . . . . . . . . Heaviest Build 93 | 12 27 31 54 3 65 65 64 93 90 Greatest Support 150 | 40 40 40 40 12 44 150 150 150 150 Greatest Overweight (x) 5 | . . . 3 . 5 4 . . 1 Average Overweight (x) . | . . . . . . . . . . Largest Inventory Capacity 20 | 8 15 15 20 5 20 20 20 20 20 Average Capacity 18 | 6 12 15 18 5 15 20 20 20 20 Most Carried 20 | 2 3 6 7 4 9 12 18 20 20 Average Carried 10 | 1 2 4 5 3 6 8 10 17 18 Final Capacity 20 | 8 15 15 5 5 20 20 20 20 20 Final Carried 20 | 2 3 6 5 4 8 8 18 20 18 Class Distribution -------------------- 64% | Mutant 35% | Scavenger-Mutant Dominant Class ---------------- Mutant | -10/Materials Mutant | -10/Mines Mutant | -10/Exiles Mutant | -9/Mines Mutant | -8/Materials Scavenger-Mutant | -8/Garrison Scavenger-Mutant | -8/Materials Mutant | -8/Garrison Scavenger-Mutant | -8/Storage Resources | -11 -10 -10 -10 -9 -8 -8 -8 -8 -8 ----------- Run | Scr Mat Min Exi Min Mat Gar Mat Gar Sto Matter Collected 3412 | 181 94 139 12 41 101 682 743 679 740 Remotely . | . . . . . . . . . . Salvage Created 2923 | . 83 65 10 . 78 829 797 458 603 Parts 180 | . 16 2 . . 7 38 49 33 35 Haulers Intercepted 2 | . . . . . 1 . 1 . . Recyclers Shooed 1 | . . . . . 1 . . . . Parts Field Recycled . | . . . . . . . . . . Retrieved Matter . | . . . . . . . . . . Parts Self-Destructed . | . . . . . . . . . . Prevented . | . . . . . . . . . . Kills | -11 -10 -10 -10 -9 -8 -8 -8 -8 -8 ------- Run | Scr Mat Min Exi Min Mat Gar Mat Gar Sto Combat Hostiles Destroyed 104 | . 6 3 5 . . 20 23 24 23 Guns 3 | . . 3 . . . . . . . Cannons 61 | . . . . . . 10 18 16 17 AOE 39 | . 6 . 5 . . 10 5 8 5 Classes Destroyed 19 | . 3 2 . . 3 2 4 3 2 Worker 2 | . . . . . 1 . . . 1 Builder 2 | . 1 . . . . . 1 . . Tunneler 1 | . . . . . . . 1 . . Hauler 2 | . . . . . 1 . 1 . . Recycler 3 | . . . . . 1 . 1 . 1 Mechanic 2 | . . . . . . . . . 2 Operator 1 | . . . . . . . 1 . . Watcher 1 | . 1 . . . . . . . . Swarmer 23 | . 6 . . . . 3 5 7 2 Cutter 3 | . . . . . . . . 3 . Grunt 37 | . . 1 . . . 12 8 6 10 Brawler 5 | . . . . . . . 1 1 3 Duelist 2 | . . . . . . . . . 2 Protector 1 | . . . . . . . . 1 . Sentry 21 | . . . . . . 4 7 4 6 Demolisher 1 | . . . . . . . . 1 . Specialist 2 | . . . . . . . 2 . . Hunter 2 | . . . . . . 1 . 1 . Assembled 7 | . . 2 5 . . . . . . Best Kill Streak 9 | . 4 1 5 . 1 6 5 4 9 Combat Bots Only 8 | . 3 1 5 . . 6 4 4 8 Max Kills in Single Turn 5 | . 3 1 2 . 1 5 1 3 4 Gunslinging . | . . . . . . . . . . Exploded 5 | . 3 . 2 . . 5 1 3 3 Melee . | . . . . . . . . . . Uniques/NPCs Destroyed . | . . . . . . . . . . Combat | -11 -10 -10 -10 -9 -8 -8 -8 -8 -8 -------- Run | Scr Mat Min Exi Min Mat Gar Mat Gar Sto Damage Taken 5756 | . 100 76 597 . . 822 1048 1324 1789 Core 758 | . 9 15 171 . . 46 138 104 275 Absorbed by Shields 17 | . . . . . . 17 . . . Core Remaining (%) 61 | 100 . . . 22 . . . . . Volleys Fired 293 | . 5 8 8 . 10 71 69 63 59 Largest 2 | . 1 2 1 . 2 2 2 2 1 Hottest 83 | . 30 40 33 . 78 78 78 83 83 Shots Fired 466 | . 5 16 8 . 20 125 128 105 59 Gun 64 | . . 16 . . . 26 1 21 . Cannon 336 | . . . . . 20 65 116 79 56 Launcher 39 | . 5 . 8 . . 8 10 5 3 Special 27 | . . . . . . 26 1 . . Kinetic 400 | . . 16 . . 20 91 117 100 56 Thermal 27 | . . . . . . 26 1 . . Explosive 39 | . 5 . 8 . . 8 10 5 3 Electromagnetic . | . . . . . . . . . . Robot Hit Streak 35 | . 2 4 2 . 5 33 35 11 13 Robot Miss Streak 3 | . . 1 1 . 2 3 2 2 3 Penetration Max 1 | . . . . . . . . . 1 Secondary Targets . | . . . . . . . . . . Shots Hit Robots 330 | . 2 11 3 . 11 96 92 70 45 Core Hits 196 | . 8 8 10 . 3 59 42 36 30 Critical Kills . | . . . . . . . . . . Critical Parts Destroyed 1 | . . . . . . 1 . . . Critical Strikes 12 | . . . . . . 3 4 3 2 Destroy 1 | . . . . . . 1 . . . Blast 9 | . . . . . . . 4 3 2 Sever 2 | . . . . . . 2 . . . Melee Attacks 3 | . . . . . . . . 3 . Impact 3 | . . . . . . . . 3 . Slashing . | . . . . . . . . . . Piercing . | . . . . . . . . . . Sneak Attacks . | . . . . . . . . . . Combat Hostiles . | . . . . . . . . . . Follow-up Attacks . | . . . . . . . . . . Damage Inflicted 12712 | . 357 91 383 . 228 2134 2485 2313 4721 Guns 481 | . . 91 . . . 195 6 189 . Cannons 8363 | . . . . . 228 915 1904 1484 3832 Explosions 3558 | . 357 . 383 . . 740 549 640 889 Melee . | . . . . . . . . . . Ramming 16 | . . . . . . . 16 . . Kinetic 8844 | . . 91 . . 228 1110 1910 1673 3832 Thermal 294 | . . . . . . 284 10 . . Explosive 3558 | . 357 . 383 . . 740 549 640 889 Electromagnetic . | . . . . . . . . . . Impact . | . . . . . . . . . . Slashing . | . . . . . . . . . . Piercing . | . . . . . . . . . . Highest Corruption 6 | . . . . . . . 2 6 6 Average Corruption 4 | . . . . . . . 2 4 6 Corruption Purged . | . . . . . . . . . . Corruption Blocked . | . . . . . . . . . . Effects 57 | . . . . . . . 1 38 18 Message Errors 18 | . . . . . . . . 12 6 Matter Fused 9 | . . . . . . . . 6 3 Heat Flow Errors 4 | . . . . . . . . 4 . Energy Discharges 7 | . . . . . . . . 6 1 Parts Rejected 3 | . . . . . . . . 1 2 Data Loss (minor) 10 | . . . . . . . 1 6 3 Data Loss (major) 2 | . . . . . . . . 1 1 Misfires 3 | . . . . . . . . 2 1 Weapon Failures 1 | . . . . . . . . . 1 Overload Shots . | . . . . . . . . . . Overflow Damage 809 | . 10 . 57 . 2 3 15 59 663 Projectiles 643 | . . . . . 2 3 11 . 627 Explosions 166 | . 10 . 57 . . . 4 59 36 Melee . | . . . . . . . . . . Knockbacks 46 | . . . . . 1 14 10 1 20 Impact . | . . . . . . . . . . Kinetic 40 | . . . . . 1 14 10 1 14 Secondary 6 | . . . . . . . . . 6 Self-Inflicted Damage 443 | . 20 . 211 . . 24 34 50 104 Shots 15 | . 1 . 6 . . 2 2 1 3 Rammed 1 | . . . . . . . 1 . . Targets Rammed 1 | . . . . . . . 1 . . Kicked . | . . . . . . . . . . Crushed . | . . . . . . . . . . Highest Temperature 323 | . . 26 . . 18 171 216 282 323 Average Temperature 73 | . . 7 . . 7 64 63 83 96 Received Heat Transfer 1608 | . . 36 . . . 384 378 216 594 Effects 1 | . . . . . . . . . 1 Damage (minor) 1 | . . . . . . . . . 1 Siege Activations . | . . . . . . . . . . Robots Corrupted . | . . . . . . . . . . Combat Hostiles . | . . . . . . . . . . Parts Fried . | . . . . . . . . . . Impact Corruptions 4 | . . . . . . . . . 4 Robots Melted . | . . . . . . . . . . Combat Hostiles . | . . . . . . . . . . Parts Melted . | . . . . . . . . . . Heat Transferred 999 | . . . . . . 962 37 . . Parts Sabotaged . | . . . . . . . . . . Parts Stolen . | . . . . . . . . . . Parts Stripped . | . . . . . . . . . . Power Chain Reactions . | . . . . . . . . . . Missiles Intercepted . | . . . . . . . . . . Alert | -11 -10 -10 -10 -9 -8 -8 -8 -8 -8 ------- Run | Scr Mat Min Exi Min Mat Gar Mat Gar Sto Peak Influence 1260 | . 311 121 . . 73 615 735 1260 1141 Initial 614 | . . 121 . . . 47 299 477 614 Average 531 | . 150 89 . . 38 431 538 902 920 Maximum Alert Level 4 | . 1 . . . . 2 3 4 4 Low Security (%) 22 | 100 76 100 . 100 100 7 . . . Level 1 11 | . 23 . . . . 26 20 . . Level 2 38 | . . . . . . 65 78 19 6 Level 3 19 | . . . . . . . 1 55 71 Level 4 7 | . . . . . . . . 24 22 Level 5 . | . . . . . . . . . . High Security . | . . . . . . . . . . Max Security . | . . . . . . . . . . Squads Dispatched 10 | . 2 . . . . . 2 . 6 Investigation 2 | . 1 . . . . . 1 . . Extermination . | . . . . . . . . . . Reinforcement 4 | . 1 . . . . . 1 . 2 Assault 3 | . . . . . . . . . 3 Garrison 1 | . . . . . . . . . 1 Intercept . | . . . . . . . . . . Searches Triggered . | . . . . . . . . . . Construction Impeded . | . . . . . . . . . . Haulers Reinforced . | . . . . . . . . . . Active Scanning Responses . | . . . . . . . . . . Cargo Convoy Interrupts . | . . . . . . . . . . Stealth | -11 -10 -10 -10 -9 -8 -8 -8 -8 -8 --------- Run | Scr Mat Min Exi Min Mat Gar Mat Gar Sto Distress Signals 7 | . 2 . . . . . 3 . 2 Communications Jammed . | . . . . . . . . . . Distress Signals . | . . . . . . . . . . Times Spotted 151 | . 11 4 7 . 2 20 37 32 38 Peak Tracking Total 10 | . 5 2 9 . 1 6 5 5 10 Tactical Retreats 10 | . . 1 . . . . 1 6 2 Traps | -11 -10 -10 -10 -9 -8 -8 -8 -8 -8 ------- Run | Scr Mat Min Exi Min Mat Gar Mat Gar Sto Traps Triggered 8 | . . . . . . 4 1 1 2 Indirectly . | . . . . . . . . . . Trap Hack Attempts . | . . . . . . . . . . Triggered . | . . . . . . . . . . Disarmed . | . . . . . . . . . . Reprogrammed . | . . . . . . . . . . Reused . | . . . . . . . . . . Traps Extracted . | . . . . . . . . . . Installed . | . . . . . . . . . . Triggered . | . . . . . . . . . . Machines | -11 -10 -10 -10 -9 -8 -8 -8 -8 -8 ---------- Run | Scr Mat Min Exi Min Mat Gar Mat Gar Sto Machines Disabled 11 | . 1 . 3 . . . 4 . 3 Max in Single Turn 1 | . 1 . 1 . . . 1 . 1 Garrison Access 1 | . . . . . . . . . 1 Machines Sabotaged . | . . . . . . . . . . Garrisons Compromised . | . . . . . . . . . . Overloaded Fab Kills . | . . . . . . . . . . Hacking | -11 -10 -10 -10 -9 -8 -8 -8 -8 -8 --------- Run | Scr Mat Min Exi Min Mat Gar Mat Gar Sto Machines Accessed 20 | . 3 1 2 . 3 2 6 1 2 Terminals 14 | . 2 . . . 2 2 5 1 2 Fabricators . | . . . . . . . . . . Repair Stations . | . . . . . . . . . . Recycling Units 1 | . 1 . . . . . . . . Scanalyzers . | . . . . . . . . . . Garrison Access 2 | . . . . . 1 . 1 . . Total Hacks 53 | . 6 1 2 . 16 5 15 2 6 Successful 26 | . 3 1 2 . 8 1 7 1 3 Failed 27 | . 3 . . . 8 4 8 1 3 Catastrophic 6 | . . . . . 1 2 1 . 2 Database Lockouts . | . . . . . . . . . . Manual 44 | . 6 . 1 . 15 3 14 . 5 Terminals 47 | . 5 . . . 15 5 14 2 6 Fabricators . | . . . . . . . . . . Repair Stations . | . . . . . . . . . . Recycling Units 1 | . 1 . . . . . . . . Scanalyzers . | . . . . . . . . . . Garrison Access 2 | . . . . . 1 . 1 . . Terminal Hacks 19 | . 2 1 2 . 6 1 3 1 3 Record 1 | . . . 1 . . . . . . Part Schematic 1 | . . . . . 1 . . . . Robot Analysis 8 | . 2 . . . 5 . . . 1 Open Door 1 | . . 1 . . . . . . . Emergency Access Points 1 | . . . . . . . . 1 . Unreport Threat 2 | . . . . . . . . . 2 Zone Layout 3 | . . . . . . . 3 . . Security Stations 1 | . . . . . . 1 . . . EX-Prototype ID Bank 1 | . . . 1 . . . . . . Fabricator Hacks . | . . . . . . . . . . Repair Station Hacks . | . . . . . . . . . . Recycling Unit Hacks . | . . . . . . . . . . Scanalyzer . | . . . . . . . . . . Garrison Access Hacks 2 | . . . . . 1 . 1 . . Unlock Access 2 | . . . . . 1 . 1 . . Unauthorized Hacks 5 | . 1 . . . 1 . 3 . . Terminals 4 | . . . . . 1 . 3 . . Track 2 | . . . . . . . 2 . . Botnet 1 | . . . . . 1 . . . . Disrupt 1 | . . . . . . . 1 . . Fabricators . | . . . . . . . . . . Repair Stations . | . . . . . . . . . . Recycling Units 1 | . 1 . . . . . . . . Tunnel 1 | . 1 . . . . . . . . Scanalyzers . | . . . . . . . . . . Garrison Access . | . . . . . . . . . . Data Cores Recovered 1 | . . . . . . . 1 . . Used 1 | . . . . . . . 1 . . Hacking Detections 14 | . 2 . . . 2 2 5 1 2 Full Trace Events 1 | . . . . . 1 . . . . Feedback Events . | . . . . . . . . . . Feedback Blocked . | . . . . . . . . . . Robot Schematics Acquired . | . . . . . . . . . . Robots Built . | . . . . . . . . . . Authchips . | . . . . . . . . . . Time . | . . . . . . . . . . Total Robot Build Rating . | . . . . . . . . . . Part Schematics Acquired 1 | . . . . . 1 . . . . Parts Built . | . . . . . . . . . . Authchips . | . . . . . . . . . . Time . | . . . . . . . . . . Total Part Build Rating . | . . . . . . . . . . Parts Repaired . | . . . . . . . . . . Time . | . . . . . . . . . . Parts Recycled . | . . . . . . . . . . Recycled Matter . | . . . . . . . . . . Retrieved Matter . | . . . . . . . . . . Retrieved Components . | . . . . . . . . . . Parts Scanalyzed . | . . . . . . . . . . Part Schematics Acquired . | . . . . . . . . . . Parts Damaged . | . . . . . . . . . . Bothacking | -11 -10 -10 -10 -9 -8 -8 -8 -8 -8 ------------ Run | Scr Mat Min Exi Min Mat Gar Mat Gar Sto Used RIF Installer . | . . . . . . . . . . Robots Hacked . | . . . . . . . . . . Non-combat . | . . . . . . . . . . Combat . | . . . . . . . . . . Robot Hacks Applied . | . . . . . . . . . . Relay Couplers Released 1 | . . . . . . . . . 1 Machine Destruction 1 | . . . . . . . . . 1 Fabnet Peak Effective % . | . . . . . . . . . . Robots Rewired 9 | . . . . . . . . 9 . Allies Hacked . | . . . . . . . . . . Hacks Repelled . | . . . . . . . . . . Allies | -11 -10 -10 -10 -9 -8 -8 -8 -8 -8 -------- Run | Scr Mat Min Exi Min Mat Gar Mat Gar Sto Total Allies 9 | . . . . . . . . 9 . Largest Group 4 | . . . . . . . . 4 1 Highest-Rated Group 63 | . . . . . . . . 63 21 Highest-Rated Ally 21 | . . . . . . . . 21 21 Total Orders . | . . . . . . . . . . Ally Attacks 35 | . . . . . . . . 32 3 Total Damage 519 | . . . . . . . . 422 97 Kills 6 | . . . . . . . . 6 . Allies Corrupted 1 | . . . . . . . . 1 . Allies Melted . | . . . . . . . . . . Intel | -11 -10 -10 -10 -9 -8 -8 -8 -8 -8 ------- Run | Scr Mat Min Exi Min Mat Gar Mat Gar Sto Robot Analysis Total 8 | . 2 . . . 5 . . . 1 Derelict Logs Recovered 1 | . . 1 . . . . . . . Drone Launches . | . . . . . . . . . . Drone Recoveries . | . . . . . . . . . . Exploration | -11 -10 -10 -10 -9 -8 -8 -8 -8 -8 ------------- Run | Scr Mat Min Exi Min Mat Gar Mat Gar Sto Turns Passed 7261 | 82 346 642 640 53 344 1493 1535 1649 477 Spaces Moved 3754 | 47 202 386 291 61 254 780 760 814 159 Core 3 | 3 . . . . . . . . . Treads 3042 | 44 202 386 281 . 16 380 760 814 159 Legs . | . . . . . . . . . . Wheels 591 | . . . . . 191 400 . . . Hover 118 | . . . 10 61 47 . . . . Flight . | . . . . . . . . . . Fastest Speed 50 | 50 160 160 80 80 61 111 160 160 160 Average Speed 155 | 152 160 160 212 80 112 139 160 160 161 Slowest Speed 320 | 160 160 160 290 80 240 320 160 160 240 Overloaded Moves . | . . . . . . . . . . Propulsion Burnouts . | . . . . . . . . . . Robots Hopped . | . . . . . . . . . . Cave-ins Triggered . | . . . . . . . . . . Exploration Rate (%) 48 | 3 52 84 69 30 16 58 63 72 33 Regions Visited 9 Branch Regions 4 Pre-discovered Areas 2 | . 1 . 1 . . . . . . Known Exits Taken 2 | . . . . . 1 . 1 . . Unknown Exits Taken 5 | 1 1 1 1 1 . . . . . Scrap Searched 3 | . . 1 . 2 . . . . . Spaces Dug 30 | . . . . . . . 17 13 . Terrain Destroyed 240 | . 31 . 46 . 3 30 49 56 25 Melee . | . . . . . . . . . . Projectile 22 | . . . . . 3 1 4 4 10 AOE 218 | . 31 . 46 . . 29 45 52 15 Terrain Rammed . | . . . . . . . . . . Walls Destroyed . | . . . . . . . . . . Machines Disabled . | . . . . . . . . . . Actions | -11 -10 -10 -10 -9 -8 -8 -8 -8 -8 --------- Run | Scr Mat Min Exi Min Mat Gar Mat Gar Sto Total 4651 | 54 217 397 305 64 292 1041 946 1045 290 Wait 303 | . . . . . 1 122 75 55 50 Move 3742 | 46 201 385 290 60 253 777 760 811 159 Hop . | . . . . . . . . . . Pick Up 44 | 2 1 3 1 1 8 7 10 9 2 Fast Attach 35 | 6 2 . . 1 9 4 4 2 7 Attach 27 | . . . 1 2 3 5 3 7 6 Detach 18 | . 1 . . . 2 6 5 2 2 Swap 40 | . 6 1 2 . . 8 13 7 3 Drop 33 | . 1 . 3 . 6 9 6 6 2 Fire 293 | . 5 8 8 . 10 71 69 63 59 Melee 3 | . . . . . . . . 3 . Ram . | . . . . . . . . . . Kick . | . . . . . . . . . . Crush 1 | . . . . . . . 1 . . Escape Stasis 31 | . . . . . . 31 . . . Rewire 81 | . . . . . . 1 . 80 . Trap . | . . . . . . . . . . Miscellaneous . | . . . . . . . . . . Route ------- -11/Scrapyard -10/Materials (discovered 2 exits: *Min x2) -10/Mines (discovered 3 exits: [*Mat x2] / *Exi) -10/Exiles (discovered 2 exits: [*Min x2]) -9/Mines (discovered 2 exits: *Mat x2) -8/Materials (discovered 2 exits: Fac / Gar) -8/Garrison (discovered 3 exits: *Mat x3) -8/Materials (discovered 4 exits: *Fac x2 / *Sto / Gar) -8/Garrison (discovered 3 exits: *Sto x3) -8/Storage History --------- Turn | Location | Event 48 | -11/Scrapyard | Discovered new exit (range 15) 83 | -11/Scrapyard | Entered Materials 256 | -10/Materials | Discovered new exit (range 15) 313 | -10/Materials | Build established: Mutant 347 | -10/Materials | Discovered new exit (range 14) 429 | -10/Materials | Entered Mines 444 | -10/Mines | Discovered new exit (range 10) 480 | -10/Mines | Received a Rocket Launcher from a helpful Derelict 526 | -10/Mines | Learned location of 1 exit from Materials 529 | -10/Mines | Met a Derelict who couldn't figure out how to use a Trap Extractor 770 | -10/Mines | Assembled infested the area 957 | -10/Mines | Discovered new exit (range 15) 1064 | -10/Mines | Deemed a non-threat by the Exiles lab entrance 1064 | -10/Mines | Discovered new exit (range 5) 1071 | -10/Mines | Entered Exiles 1097 | -10/Exiles | Discovered new exit (range 15) 1108 | -10/Exiles | Met 8R-AWN 1135 | -10/Exiles | Met EX-HEX 1278 | -10/Exiles | Met EX-DEC 1324 | -10/Exiles | Learned location of Zion (-7) 1379 | -10/Exiles | Met EX-BIN 1408 | -10/Exiles | Aligned with FarCom system 1410 | -10/Exiles | Given EX-Vault access code 1470 | -10/Exiles | Opened EX-Vault 1521 | -10/Exiles | Warned to stay clear of 0b10 Research branches 1640 | -10/Exiles | Attacked by the Exiles 1692 | -10/Exiles | Core integrity fell below 50% 1698 | -10/Exiles | Discovered new exit (range 10) 1711 | -10/Exiles | Entered Mines 1724 | -9/Mines | Lost 5 parts (1p2n2w) 1746 | -9/Mines | Discovered new exit (range 15) 1754 | -9/Mines | Discovered new exit (range 11) 1764 | -9/Mines | Entered Materials 1764 | -8/Materials | Evolved 4 slots: Propulsion x2, Utility x2 1765 | -8/Materials | Identified exit to Factory 2104 | -8/Materials | Identified exit to Garrison 2108 | -8/Materials | Entered Garrison 2209 | -8/Garrison | Triggered checkpoint 2284 | -8/Garrison | Discovered new exit (range 11) 2366 | -8/Garrison | Triggered checkpoint 2437 | -8/Garrison | Discovered new exit (range 10) 2446 | -8/Garrison | Learned Materials security intel 2500 | -8/Garrison | Triggered checkpoint 2654 | -8/Garrison | Triggered checkpoint 2720 | -8/Garrison | Lost 4 parts (1p1n2u) 2975 | -8/Garrison | Build established: Scavenger-Mutant 3074 | -8/Garrison | Discovered new exit (range 10) 3310 | -8/Garrison | Attempted to access garrison exit controls, blocked by remote lockdown 3472 | -8/Garrison | Attempted to access garrison exit controls, blocked by remote lockdown 3601 | -8/Garrison | Entered Materials 4051 | -8/Materials | Discovered exit to Factory (range 8) 4244 | -8/Materials | Discovered exit to Factory (range 5) 4687 | -8/Materials | Discovered new exit (range 12) 5136 | -8/Materials | Identified exit to Garrison 5136 | -8/Materials | Entered Garrison 5204 | -8/Garrison | Build established: Mutant 5222 | -8/Garrison | Triggered checkpoint 5306 | -8/Garrison | Triggered checkpoint 5316 | -8/Garrison | Triggered checkpoint 5450 | -8/Garrison | Triggered checkpoint 5469 | -8/Garrison | Discovered new exit (range 14) 5508 | -8/Garrison | Triggered checkpoint 5636 | -8/Garrison | Triggered checkpoint 6188 | -8/Garrison | Triggered checkpoint 6207 | -8/Garrison | Discovered new exit (range 7) 6310 | -8/Garrison | Triggered checkpoint 6332 | -8/Garrison | Triggered checkpoint 6371 | -8/Garrison | Attempted to access garrison exit controls, blocked by remote lockdown 6538 | -8/Garrison | Attempted to access garrison exit controls, blocked by remote lockdown 6609 | -8/Garrison | Core integrity fell below 50% 6682 | -8/Garrison | Discovered new exit (range 6) 6785 | -8/Garrison | Entered Storage 6785 | -8/Storage | Accompanied by 1 ally 6811 | -8/Storage | Garrison activated, responded to threat 6924 | -8/Storage | Destroyed 8 combat bots 7177 | -8/Storage | Core integrity fell below 20% 7185 | -8/Storage | First assault squad dispatched 7262 | -8/Storage | Destroyed by G-47 Trooper with Particle Gun Last Messages --------------- 07237_ M-28 Smith unfolds itself. 07246_ Imp. Heavy Treads destroyed. 07252_ Acquired Rocket Launcher. 07253_ Lgt. Nuclear Core destroyed. 07253_ Rocket Launcher severed. 07254_ U-05 Engineer builds a Door. 07256_ Acquired Rocket Launcher. 07258_ G-50 Soldier destroyed. 07258_ K-01 Serf destroyed. 07258_ Terminal disabled. 07258_ Lgt. Treads severed. 07259_ System corrupted: Energy discharge (-23). 07259_ U-05 Engineer lays Concrete. 07260_ B-36 Bruiser destroyed. 07260_ G-47 Trooper destroyed. 07260_ L-31 Rogue destroyed. 07260_ M-28 Smith destroyed. 07260_ U-05 Engineer lays Concrete. 07261_ K-01 Serf collects debris. 07262_ Destroyed Lgt. Nuclear Core. Map ----- +----------------------------------------------------+ | ????????????????????????????????????????????????? | | ????????????????????????????????????????????????? | | ????????????????????????????????????????????????? | | ????????????????????????????????????????????????? | | ????????????????????????????????????????????????? | | ????????????????????????????????????????????????? | | ????????????????????????????????????????????????? | | ????????????????????????????????????????????????? | | ????????????????????????????????????????????????? | | ????????????????????????????????????????????????? | | ????????????????????????????????????????????????? | | ?????????????????????????????????####???????????? | | ????????????????????????????????? #???????????? | | ????????????????????????????????? #???????????? | | ????????????????????????????????? #???????????? | | ????????????????????????????????# #???????????? | | ????????????????????????????????# #???????????? | | ????????????????????????????????# #???????????? | | ????????????????????????????????# #??????????## | | ?????????????????????#########??# ###????????? | | ?????????????????????# ##?# %%"?????????? | | ?????????????????????# ### ##????###??? | | ?????????????????????# *g= %b # ###### ###?# | | ????????????????????## /]gg%="u# # #?# | | ????????????????????# =% == !u + # ### | | ?????????????????????# =@===[" # # # | | ?????????????????????# !%! # # # | | ?????????????????????# ## ## !!!%+ | | ?????????????????????# ## ## !!! " | | ?????????????????????# ## ##* !! # | | ?????????????????????############ ##== ! ### | | ?????????????????????? # ##!*[ " #?? | | ?????????????????????????"" """ + ##/##/#####?? | | ?????????????????????????"" """ # %*=#% #?? | | ??????????????????????????" ""??# ==* ! !#?? | | ?????????????????????????? ????# =" ! #?? | | ????????????????????????????????# # *#?? | | ?????????????????????????????#####+###+# #?? | | ?????????????????????????????# # #?? | | ?????????????????????????????# ########?? | | ?????????????????????????????# #????????? | | ?????????????????????????????# #????????? | | ?????????????????????????????# #????????? | | ?????????????????????????????# #????????? | | ?????????????????????????????# #????????? | | ?????????????????????????????# #????????? | | ?????????????????????????????###########????????? | | ????????????????????????????????????????????????? | | ????????????????????????????????????????????????? | | ????????????????????????????????????????????????? | +----------------------------------------------------+ Best States ------------- Heat Dissipation 45 Energy Generation 18 Energy Capacity 280 Matter Stores 300 Matter Capacity 300 Sight Range 18 Terrain Scan Density 10 Armor Coverage 525 Resistance: EM 20 Evasion (%) 52 Targeting Accuracy 8 Recoil Reduction 4 Item Schematics ----------------- Hcp. Storage Unit | -8/Materials | Hacked Robot Schematics ------------------ None Fabricated ------------ Nothing Alien Tech Used ----------------- None Achievements -------------- None Challenges ------------ None Game ------ Seed RagnarokSigixStripper Manual? 0 Play Time 00:56:10 Cumulative 268.5 hours Start 2022.07.27 @ 20:16:40 End 2022.07.27 @ 21:13:40 Sessions 1 Manual Loads 0 Difficulty Rogue Special Mode None Game No. 372 Rogue 285 Adventurer 87 Explorer 0 Win Type - Total 9 Types 4/0/3/1/1/0/0/0/0 Lore% 77 Gallery% 80 Achievement% 70 Wizard Run 0 Options --------- ASCII 0 Keyboard 1 Movement Numpad Keybinds 0 Fullscreen 1 Font 18/Smallcaps Map View 76x50 Tactical HUD 1 Map Filters NONE Filters NONE Steam 1 RUN: 3333dec3-9a72-4e72-9640-b8ea1a5f5625